bitfinex-derivatives/quotes_BTCF0:USTF0_20210102
["timestamp","ask_amount","ask_price","bid_price","bid_amount"]
[1609586627174,1.0,29652.0,29630.0,0.00037955]
[1609586627375,0.2768,29651.0,29631.0,0.101]
[1609586627577,1.0,29650.0,29632.0,0.1012]
[1609586627977,1.0,29650.0,29633.0,0.00037963]
[1609586628578,0.01411172,29649.0,29631.0,0.00037963]
[1609586628778,4.14051172,29649.0,29634.0,0.00037961]
[1609586629078,4.14051172,29649.0,29632.0,0.10247961]
[1609586629279,0.00410404,29648.0,29635.0,0.00037961]
[1609586629478,0.18043158,29636.0,29635.0,0.00037961]
[1609586629680,0.18043158,29636.0,29633.0,0.00037961]
[1609586629879,0.18043158,29636.0,29632.0,5.1378]
[1609586630082,0.18043158,29636.0,29634.0,0.0003796]
[1609586630279,0.18043158,29636.0,29634.0,0.1023796]
[1609586630479,0.18043158,29636.0,29634.0,0.102]
[1609586630680,0.18043158,29636.0,29632.0,5.1378]
[1609586630882,0.18043158,29636.0,29630.0,0.13103]
[1609586631283,0.18043158,29636.0,29631.0,0.00037959]
[1609586631482,0.18043158,29632.0,29631.0,0.00037959]
[1609586631883,0.18043158,29632.0,29631.0,0.10267959]
[1609586632083,0.18043158,29632.0,29631.0,0.1023]
[1609586632282,0.18043158,29632.0,29631.0,0.65157959]
[1609586632685,0.1006,29632.0,29631.0,0.65157959]
[1609586632884,0.01404026,29649.0,29629.0,0.07543]
[1609586633083,0.01404026,29649.0,29631.0,5.5322]
[1609586633485,0.01404026,29649.0,29642.0,0.18043158]
[1609586633686,0.01404026,29649.0,29642.0,0.35365158]
[1609586633886,0.2808967,29651.0,29643.0,0.0997]
[1609586634687,0.2768,29651.0,29643.0,0.0997]
[1609586635292,0.2768,29651.0,29642.0,0.35365158]
[1609586635491,0.18043158,29643.0,29642.0,0.35365158]
[1609586635888,0.28053158,29643.0,29642.0,0.35365158]
[1609586636093,0.85143158,29643.0,29642.0,0.17322]
[1609586636294,0.85143158,29643.0,29642.0,0.27352]
[1609586637190,0.85143158,29643.0,29642.0,0.17322]
[1609586637894,0.75133158,29643.0,29642.0,0.17322]
[1609586638092,0.18043158,29643.0,29642.0,0.17322]
[1609586638691,0.18043158,29643.0,29642.0,5.20862]
[1609586638894,0.2768,29651.0,29642.0,4.9329]
[1609586639092,0.1009,29650.0,29642.0,5.07174]
[1609586639492,0.18043158,29643.0,29642.0,5.25217158]
[1609586639693,0.28273158,29643.0,29642.0,5.25217158]
[1609586639894,0.28273158,29643.0,29642.0,5.35477158]
[1609586640194,0.18043158,29643.0,29642.0,5.17434]
[1609586640396,0.18043158,29643.0,29642.0,5.07174]
[1609586640997,0.18043158,29643.0,29642.0,0.13884]
[1609586641499,0.18043158,29643.0,29642.0,0.31927158]
[1609586641903,0.2768,29651.0,29642.0,0.31927158]
[1609586642104,0.2768,29651.0,29645.0,5.0192]
[1609586642302,0.3783,29651.0,29645.0,5.0192]
[1609586643003,0.2768,29651.0,29645.0,5.0192]
[1609586643404,0.2768,29651.0,29650.0,0.18043158]
[1609586643605,0.2768,29651.0,29650.0,0.39718158]
[1609586644005,0.3773,29651.0,29650.0,0.39718158]
[1609586645511,0.45723158,29651.0,29650.0,0.29718158]
[1609586646512,0.55753158,29651.0,29650.0,0.39878158]
[1609586646715,0.45723158,29651.0,29650.0,0.29718158]
[1609586647711,0.55953158,29651.0,29650.0,0.39798158]
[1609586648314,0.45723158,29651.0,29650.0,0.29718158]
[1609586650117,0.2768,29651.0,29650.0,0.29718158]
[1609586655423,0.18043158,29652.0,29650.0,0.29718158]
[1609586658927,0.18043158,29652.0,29651.0,0.00037685]
[1609586659128,0.18043158,29652.0,29650.0,0.29718158]
[1609586659928,0.18043158,29652.0,29651.0,0.00037686]
[1609586661632,0.1004,29662.0,29651.0,0.00037686]
[1609586661633,0.18043158,29655.0,29651.0,0.00037686]
[1609586663533,0.18043158,29655.0,29654.0,0.18043158]
[1609586663935,0.18043158,29655.0,29654.0,0.18080844]
[1609586664635,0.18043158,29655.0,29654.0,0.00037686]
[1609586664936,0.18043158,29655.0,29651.0,0.00037686]
[1609586665336,0.18043158,29655.0,29654.0,0.00037688]
[1609586665536,0.18043158,29655.0,29652.0,0.00037688]
[1609586665737,0.18043158,29655.0,29654.0,0.00037688]
[1609586666138,0.18043158,29655.0,29653.0,0.00037691]
[1609586666341,1.18043158,29655.0,29654.0,0.00037691]
[1609586666539,1.18043158,29655.0,29650.0,0.11675]
[1609586666745,6.08603158,29655.0,29642.0,0.13884]
[1609586666940,6.0864425,29655.0,29636.0,4.8491]
[1609586667140,0.00041094,29654.0,29643.0,0.00037695]
[1609586667342,0.00041094,29654.0,29637.0,0.00037695]
[1609586667542,0.18043158,29638.0,29637.0,0.00037695]
[1609586667743,0.18043158,29638.0,29636.0,5.02953158]
[1609586667942,0.18043158,29638.0,29637.0,0.00037698]
[1609586668343,0.18043158,29638.0,29637.0,0.15807698]
[1609586670743,5.19033158,29638.0,29637.0,0.15807698]
[1609586672646,5.19033158,29638.0,29637.0,0.15807702]
[1609586675649,0.18043158,29638.0,29637.0,0.15807702]
[1609586677150,5.14983158,29638.0,29637.0,0.15807702]
[1609586678549,5.14983158,29638.0,29629.0,0.17167]
[1609586678750,1.0,29637.0,29625.0,2.03122951]
[1609586678951,1.0,29637.0,29630.0,0.00037706]
[1609586679150,1.0,29637.0,29630.0,0.16723]
[1609586679151,4.8327,29632.0,29630.0,0.16723]
[1609586679352,4.8327,29632.0,29631.0,0.00037708]
[1609586679550,5.01313158,29632.0,29631.0,0.00037708]
[1609586679751,5.01107918,29632.0,29631.0,0.00037708]
[1609586681253,0.18043158,29632.0,29631.0,0.00037708]
[1609586687167,1.1023,29641.0,29631.0,0.00037708]
[1609586687367,4.2249,29635.0,29631.0,0.00037708]
[1609586687766,0.18043158,29632.0,29631.0,0.00037708]
[1609586693074,1.0,29638.0,29631.0,0.00037708]
[1609586693474,1.0,29638.0,29633.0,3.9275]
[1609586693674,0.01410466,29644.0,29637.0,0.18043158]
[1609586693873,0.01410466,29644.0,29637.0,0.30090158]
[1609586694274,0.01410466,29644.0,29638.0,0.00037702]
[1609586694475,0.1015,29643.0,29638.0,0.00037702]
[1609586694976,1.0,29649.0,29638.0,0.00037702]
[1609586695175,4.3839,29648.0,29638.0,0.00037702]
[1609586695375,1.0,29647.0,29638.0,0.00037702]
[1609586695574,2.0,29647.0,29638.0,0.00037702]
[1609586695774,0.18043158,29639.0,29638.0,0.00037702]
[1609586696275,0.18043158,29639.0,29638.0,0.04147796]
[1609586696875,0.18043158,29639.0,29638.0,0.66647796]
[1609586697775,0.18043158,29639.0,29638.0,0.84690954]
[1609586699076,0.18043158,29639.0,29638.0,0.04147796]
[1609586701280,1.2751,29650.0,29638.0,5.14577796]
[1609586701480,1.0,29650.0,29638.0,5.14577796]
[1609586701680,0.0041227,29652.0,29649.0,0.18043158]
[1609586701881,0.0041227,29652.0,29649.0,0.29237158]
[1609586702083,0.0041227,29652.0,29650.0,0.00037693]
[1609586702683,0.0041227,29652.0,29650.0,0.04146301]
[1609586703081,0.0041227,29652.0,29651.0,5.4733]
[1609586703481,0.0041227,29652.0,29651.0,5.47367685]
[1609586703884,0.18043158,29653.0,29651.0,5.47367685]
[1609586704282,0.18043158,29653.0,29652.0,0.00037685]
[1609586705785,0.18043158,29656.0,29652.0,0.18080843]
[1609586706385,0.18043158,29656.0,29653.0,0.00037683]
[1609586707685,0.18043158,29656.0,29655.0,0.18043158]
[1609586707886,0.00414152,29666.0,29655.0,0.32973158]
[1609586708086,0.00414152,29666.0,29661.0,4.9752]
[1609586708286,0.00414152,29666.0,29661.0,5.12713]
[1609586708887,0.00414212,29667.0,29661.0,5.12713]
[1609586709886,0.00414212,29667.0,29663.0,0.18043158]
[1609586711789,0.18043158,29664.0,29663.0,0.18043158]
[1609586713894,0.18043158,29664.0,29661.0,0.15193]
[1609586714294,0.18043158,29664.0,29658.0,0.18043158]
[1609586715794,0.18043158,29660.0,29658.0,0.18043158]
[1609586716194,0.18043158,29660.0,29658.0,5.66873158]
[1609586718798,0.18043158,29660.0,29659.0,0.00037608]
[1609586720200,0.18043158,29660.0,29655.0,0.1493]
[1609586720399,0.18043158,29660.0,29649.0,5.03594]
[1609586720700,0.18043158,29660.0,29656.0,0.00037616]
[1609586721100,0.18043158,29660.0,29656.0,0.11707]
[1609586721300,0.18043158,29660.0,29657.0,0.00037616]
[1609586721500,0.18043158,29660.0,29656.0,0.11707]
[1609586721900,0.18043158,29657.0,29656.0,0.11707]
[1609586722100,1.18043158,29657.0,29656.0,0.11707]
[1609586722300,6.09123158,29657.0,29656.0,0.11707]
[1609586723502,0.18043158,29657.0,29656.0,0.11707]
[1609586724403,0.18043158,29657.0,29656.0,0.11744627]
[1609586744933,0.18043158,29657.0,29656.0,4.37034627]
[1609586745135,1.2825,29666.0,29656.0,4.37034627]
[1609586745334,1.0,29666.0,29656.0,4.37034627]
[1609586745735,0.00413282,29669.0,29657.0,0.00037617]
[1609586745935,0.00413282,29669.0,29658.0,0.18043158]
[1609586746336,0.10672,29670.0,29658.0,0.18043158]
[1609586746536,0.00413365,29671.0,29659.0,0.00037617]
[1609586748036,0.18043158,29660.0,29659.0,0.04145537]
[1609586751443,0.17838103,29660.0,29659.0,0.04145537]
[1609586758655,0.17838103,29660.0,29657.0,0.04145468]
[1609586758856,4.43488103,29660.0,29659.0,0.04145646]
[1609586759254,4.43488103,29660.0,29656.0,0.11707]
[1609586759255,4.43488103,29660.0,29658.0,0.04145661]
[1609586759454,4.43488103,29660.0,29656.0,0.11707]
[1609586759455,4.43488103,29660.0,29657.0,0.04145877]
[1609586759654,4.43488103,29660.0,29659.0,0.0414595]
[1609586759955,4.43488103,29660.0,29658.0,0.0414597]
[1609586760156,4.43488103,29660.0,29657.0,0.0414592]
[1609586760454,4.43488103,29660.0,29659.0,0.0414594]
[1609586760659,0.17838103,29660.0,29659.0,0.0414594]
[1609586760855,0.17838103,29660.0,29658.0,0.04145893]
[1609586761053,0.17838103,29660.0,29659.0,0.04145893]
[1609586761656,0.17838103,29660.0,29657.0,0.04146042]
[1609586761855,0.17838103,29660.0,29659.0,0.04145861]
[1609586762055,0.17838103,29660.0,29659.0,4.3001]
[1609586762455,0.17838103,29660.0,29659.0,4.34155771]
[1609586766260,0.00415531,29670.0,29659.0,4.34155771]
[1609586766760,0.00415531,29670.0,29669.0,0.554]
[1609586767364,0.0041588,29671.0,29669.0,0.55437613]
[1609586767964,0.0041588,29671.0,29670.0,0.00037611]
[1609586768166,0.00416484,29676.0,29670.0,0.00037611]
[1609586768763,0.18043158,29671.0,29670.0,0.00037611]
[1609586772768,0.11930128,29677.0,29670.0,0.00037611]
[1609586772967,1.11930128,29677.0,29670.0,0.00037611]
[1609586773569,1.10502158,29677.0,29670.0,0.00037611]
[1609586774269,0.10502158,29677.0,29670.0,0.00037611]
[1609586774471,1.01428024,29678.0,29670.0,0.00037611]
[1609586774769,0.18043158,29671.0,29670.0,0.04144572]
[1609586782178,0.2972,29681.0,29670.0,0.04144572]
[1609586782679,0.2972,29681.0,29676.0,0.18043158]
[1609586782878,0.2972,29681.0,29680.0,0.6156]
[1609586783079,0.2972,29681.0,29676.0,0.18043158]
[1609586783279,0.2972,29681.0,29680.0,3.90127768]
[1609586783480,0.2972,29681.0,29680.0,0.00037768]
[1609586783881,0.2972,29681.0,29677.0,0.00037768]
[1609586784079,0.2972,29681.0,29680.0,0.00037768]
[1609586784280,0.2972,29681.0,29678.0,0.00037768]
[1609586784681,0.2972,29681.0,29680.0,0.18043158]
[1609586785082,0.00416874,29683.0,29680.0,0.18080926]
[1609586785282,0.00416874,29683.0,29682.0,4.1727]
[1609586785685,0.00416874,29683.0,29682.0,4.17307764]
[1609586786687,0.18043158,29683.0,29682.0,4.1727]
[1609586787588,0.18043158,29683.0,29682.0,4.17307764]
[1609586803907,0.18043158,29683.0,29682.0,4.21413026]
[1609586804711,0.17838234,29683.0,29682.0,4.21413026]
[1609586808015,0.17838234,29683.0,29682.0,4.17307764]
[1609586808617,0.17838234,29683.0,29682.0,4.21412829]
[1609586809116,0.17838234,29683.0,29682.0,4.17307764]
[1609586816228,0.17838234,29683.0,29682.0,4.21412641]
[1609586817129,0.17633343,29683.0,29682.0,4.21412641]
[1609586818432,0.17633343,29683.0,29682.0,0.04142641]
[1609586818832,5.46163343,29683.0,29682.0,0.04142641]
[1609586819233,5.46163343,29683.0,29681.0,0.04142834]
[1609586819433,5.46163343,29683.0,29682.0,0.00037757]
[1609586819634,6.46163343,29683.0,29682.0,0.00037757]
[1609586819935,6.46163343,29683.0,29681.0,0.0003776]
[1609586820237,6.46163343,29683.0,29682.0,0.0003776]
[1609586820635,6.46163343,29683.0,29681.0,0.0003776]
[1609586820835,1.0,29682.0,29681.0,0.04105655]
[1609586821035,1.0,29682.0,29681.0,0.00037761]
[1609586821236,1.0,29682.0,29675.0,0.0414348]
[1609586821636,1.0,29682.0,29681.0,0.00037761]
[1609586821835,1.0,29682.0,29676.0,0.00037761]
[1609586822035,1.0,29682.0,29675.0,0.04143482]
[1609586822335,1.0,29682.0,29677.0,0.00037763]
[1609586822636,1.0,29682.0,29675.0,0.04143482]
[1609586822838,1.0,29682.0,29678.0,0.00037763]
[1609586823138,0.18043158,29679.0,29676.0,0.00037763]
[1609586823337,0.6892,29677.0,29676.0,0.00037763]
[1609586823537,0.6892,29677.0,29675.0,0.04143482]
[1609586823739,0.6892,29677.0,29676.0,0.00037763]
[1609586824238,0.6892,29677.0,29675.0,0.04143482]
[1609586824438,0.6892,29677.0,29676.0,0.00037763]
[1609586824939,0.6892,29677.0,29675.0,0.04143482]
[1609586825139,0.18043158,29676.0,29675.0,0.04143482]
[1609586825341,1.18043158,29676.0,29675.0,0.04105719]
[1609586825540,1.18043158,29676.0,29675.0,0.04143482]
[1609586825740,1.18043158,29676.0,29675.0,0.00037764]
[1609586828043,6.28793158,29676.0,29675.0,0.00037764]
[1609586828244,6.28588174,29676.0,29675.0,0.00037764]
[1609586829045,6.28588174,29676.0,29665.0,0.04144458]
[1609586829245,0.18043158,29666.0,29665.0,0.04106688]
[1609586829446,0.86493158,29666.0,29665.0,0.04144459]
[1609586830851,0.86493158,29666.0,29665.0,0.00037771]
[1609586834254,0.86493158,29666.0,29665.0,0.00037907]
[1609586834454,0.86493158,29666.0,29664.0,0.00037907]
[1609586834854,0.86493158,29666.0,29665.0,0.00037907]
[1609586835254,0.18043158,29666.0,29664.0,0.00037907]
[1609586835554,0.18043158,29666.0,29665.0,0.00037907]
[1609586836156,0.18043158,29666.0,29664.0,0.00037907]
[1609586836355,0.18043158,29666.0,29665.0,0.00037905]
[1609586836656,0.18043158,29666.0,29664.0,0.04144604]
[1609586836858,0.18043158,29666.0,29665.0,0.00037905]
[1609586837257,0.18043158,29666.0,29665.0,0.18081063]
[1609586837457,0.18043158,29666.0,29665.0,0.18043158]
[1609586837658,0.18043158,29666.0,29665.0,0.18081063]
[1609586839258,0.18043158,29666.0,29665.0,0.22187732]
[1609586843365,0.17838165,29666.0,29665.0,0.22187732]
[1609586863298,0.93858165,29666.0,29665.0,0.22187732]
[1609586863498,0.93653186,29666.0,29665.0,0.22187732]
[1609586865403,0.93653186,29666.0,29665.0,0.04144574]
[1609586865802,0.93653186,29666.0,29664.0,0.04144509]
[1609586866002,1.93653186,29666.0,29664.0,0.04144509]
[1609586866202,1.17633186,29666.0,29665.0,0.04144494]
[1609586866402,6.21943186,29666.0,29665.0,0.04144494]
[1609586866603,6.21943186,29666.0,29664.0,0.04144973]
[1609586867005,6.21943186,29666.0,29665.0,0.04145007]
[1609586867404,6.21943186,29666.0,29664.0,0.04144962]
[1609586867804,6.21943186,29666.0,29665.0,0.04144955]
[1609586868008,6.21943186,29666.0,29664.0,0.04144955]
[1609586868305,6.21943186,29666.0,29665.0,0.04144952]
[1609586868808,6.21943186,29666.0,29664.0,0.04144961]
[1609586869006,1.17633186,29666.0,29665.0,0.00037908]
[1609586869407,6.10363186,29666.0,29665.0,0.00037908]
[1609586869608,6.10363186,29666.0,29664.0,0.04144961]
[1609586869807,6.10363186,29666.0,29665.0,0.00037908]
[1609586870413,6.10363186,29666.0,29664.0,0.04144961]
[1609586871108,5.10363186,29666.0,29664.0,0.04144961]
[1609586876712,0.17633186,29666.0,29664.0,0.04144961]
[1609586876912,4.4178,29665.0,29664.0,0.04144961]
[1609586877313,4.41574971,29665.0,29664.0,0.04144961]
[1609586887830,4.41369941,29665.0,29664.0,0.04144961]
[1609586888531,0.17633186,29666.0,29664.0,0.04144961]
[1609586889131,0.17633186,29666.0,29664.0,4.48084961]
[1609586889331,0.17633186,29666.0,29665.0,0.12357584]
[1609586889534,4.5941,29671.0,29665.0,0.12357584]
[1609586889731,4.77453158,29671.0,29670.0,0.18043158]
[1609586889932,0.18043158,29671.0,29670.0,0.34569158]
[1609586890132,0.18043158,29671.0,29670.0,0.38713559]
[1609586890530,4.15313158,29671.0,29670.0,0.38713559]
[1609586900947,4.15108171,29671.0,29670.0,0.38713559]
[1609586910958,4.14903188,29671.0,29670.0,0.38713559]
[1609586911357,0.17633188,29671.0,29670.0,0.38713559]
[1609586911657,0.17633188,29671.0,29670.0,5.74163559]
[1609586912058,0.17633188,29671.0,29670.0,5.82376066]
[1609586916364,0.85883188,29671.0,29670.0,5.82376066]
[1609586917967,0.85883188,29671.0,29670.0,0.46926066]
[1609586918369,0.85883188,29671.0,29670.0,0.38713559]
[1609586921476,0.85678206,29671.0,29670.0,0.38713559]
[1609586923077,1.85678206,29671.0,29670.0,0.38713559]
[1609586923278,1.85678206,29671.0,29670.0,0.20670401]
[1609586924979,1.85678206,29671.0,29670.0,0.16563904]
[1609586933791,2.85678206,29671.0,29670.0,0.16563904]
[1609586935692,1.85678206,29671.0,29670.0,0.16563904]
[1609586935893,1.85678206,29671.0,29670.0,0.11453904]
[1609586937897,2.85678206,29671.0,29670.0,0.11453904]
[1609586939696,1.85678206,29671.0,29670.0,0.11453904]
[1609586940999,0.85678206,29671.0,29670.0,0.11453904]
[1609586941297,1.85678206,29671.0,29670.0,0.11453904]
[1609586948507,0.85678206,29671.0,29670.0,0.11453904]
[1609586953112,0.85678206,29671.0,29670.0,0.15561554]
[1609586955916,0.17428206,29671.0,29670.0,0.15561554]
[1609586956115,0.17428206,29671.0,29670.0,5.67401554]
[1609586958919,0.17223207,29671.0,29670.0,5.67401554]
[1609586960120,0.17223207,29671.0,29670.0,0.15561554]
[1609586960322,4.95233207,29671.0,29670.0,0.15561554]
[1609586965226,0.17223207,29671.0,29670.0,0.15561554]
[1609586965827,0.17223207,29671.0,29670.0,0.18561554]
[1609586966224,0.17223207,29671.0,29670.0,4.87451554]
[1609586966925,0.17223207,29671.0,29670.0,5.05494712]
[1609586967527,0.17223207,29671.0,29670.0,0.36604712]
[1609586969127,0.17018193,29671.0,29670.0,0.36604712]
[1609586969326,0.17018193,29671.0,29670.0,0.32497062]
[1609586972430,0.17018193,29671.0,29670.0,0.14453904]
[1609586972732,1.17018193,29671.0,29670.0,0.14453904]
[1609586973532,5.22198193,29671.0,29670.0,0.14453904]
[1609586973731,6.22198193,29671.0,29670.0,0.14453904]
[1609586973932,6.22198193,29671.0,29670.0,0.03037904]
[1609586974633,6.22239275,29671.0,29670.0,0.03037904]
[1609586975836,5.22239275,29671.0,29670.0,0.03037904]
[1609586976136,4.22239275,29671.0,29670.0,0.03037904]
[1609586976338,4.22198193,29671.0,29670.0,0.03037904]
[1609586976537,0.17018193,29671.0,29670.0,0.03037904]
[1609586977240,0.17438573,29671.0,29670.0,0.03037904]
[1609586980744,0.17438573,29671.0,29666.0,5.5018]
[1609586980945,0.18043158,29667.0,29666.0,5.5018]
[1609586981347,0.18043158,29667.0,29666.0,5.50217848]
[1609586981646,0.18043158,29667.0,29666.0,0.00037848]
[1609586981853,4.69183158,29667.0,29666.0,0.00037848]
[1609586982148,4.69183158,29667.0,29664.0,0.00037848]
[1609586982450,4.69183158,29667.0,29666.0,0.00037848]
[1609586982648,4.69183158,29667.0,29665.0,0.00037848]
[1609586982948,4.69183158,29667.0,29666.0,0.00037848]
[1609586983248,4.69183158,29667.0,29664.0,0.00037848]
[1609586983448,0.18043158,29667.0,29666.0,0.00037848]
[1609586983847,5.27183158,29667.0,29665.0,0.00037848]
[1609586984047,5.27183158,29667.0,29664.0,0.00037848]
[1609586984246,5.27183158,29667.0,29666.0,0.00037848]
[1609586984548,5.27183158,29667.0,29665.0,0.00037848]
[1609586984750,5.27183158,29667.0,29666.0,0.00037848]
[1609586985347,5.27183158,29667.0,29664.0,0.00037848]
[1609586985549,5.27183158,29667.0,29666.0,0.00037848]
[1609586985948,5.27183158,29667.0,29665.0,0.00037848]
[1609586986149,5.27183158,29667.0,29664.0,0.00037848]
[1609586986350,0.18043158,29667.0,29666.0,0.00037848]
[1609586986751,0.18043158,29667.0,29665.0,4.55327848]
[1609586986950,0.18043158,29667.0,29666.0,0.00037845]
[1609586990953,4.97063158,29667.0,29666.0,0.00037845]
[1609586991153,4.97063158,29667.0,29664.0,0.00037845]
[1609586991354,4.97063158,29667.0,29666.0,0.00037845]
[1609586991653,4.97063158,29667.0,29665.0,0.00037845]
[1609586991852,4.97063158,29667.0,29666.0,0.00037845]
[1609586992453,4.97063158,29667.0,29664.0,0.00037845]
[1609586992654,4.97063158,29667.0,29666.0,0.00037845]
[1609586992955,4.97063158,29667.0,29665.0,0.00037845]
[1609586993257,4.97063158,29667.0,29666.0,0.00037845]
[1609586993756,4.97063158,29667.0,29664.0,0.00037845]
[1609586999662,4.97063158,29667.0,29664.0,0.04145753]
[1609587000263,4.97063158,29667.0,29664.0,0.00037845]
[1609587000564,4.97063158,29667.0,29665.0,0.00037847]
[1609587000965,5.97063158,29667.0,29665.0,0.00037847]
[1609587001165,5.97063158,29667.0,29664.0,0.00037847]
[1609587001365,4.97063158,29667.0,29666.0,0.00037847]
[1609587001667,4.97063158,29667.0,29665.0,0.00037847]
[1609587001868,0.18043158,29667.0,29666.0,0.00037847]
[1609587004070,4.10433158,29667.0,29666.0,0.00037847]
[1609587004270,5.10433158,29667.0,29664.0,0.04145832]
[1609587004572,4.10433158,29667.0,29666.0,0.00037847]
[1609587004870,4.10474238,29667.0,29664.0,0.04145832]
[1609587005070,4.10474238,29667.0,29666.0,0.00037847]
[1609587005472,4.10433158,29667.0,29665.0,0.00037847]
[1609587005672,1.0,29666.0,29664.0,0.04107985]
[1609587006172,1.0,29666.0,29664.0,0.04145833]
[1609587007775,1.0,29666.0,29664.0,0.00037848]
[1609587007973,1.0,29666.0,29665.0,0.00037848]
[1609587008275,1.00041082,29666.0,29664.0,0.00037848]
[1609587008473,1.00041082,29666.0,29665.0,0.00037848]
[1609587008775,1.0,29666.0,29665.0,0.00037848]
[1609587009077,1.00041082,29666.0,29664.0,0.00037848]
[1609587009274,1.00041082,29666.0,29665.0,0.00037848]
[1609587009476,0.00041082,29666.0,29665.0,0.00037848]
[1609587009675,1.0,29666.0,29665.0,0.00037848]
[1609587009876,5.31731083,29666.0,29664.0,0.0003785]
[1609587010075,5.31731083,29666.0,29665.0,0.0003785]
[1609587010478,5.3169,29666.0,29665.0,0.0003785]
[1609587010676,5.31731084,29666.0,29657.0,0.04146217]
[1609587010876,0.1014,29665.0,29657.0,0.04108367]
[1609587011077,1.0,29664.0,29657.0,0.04108367]
[1609587011277,0.00041086,29665.0,29658.0,0.00037852]
[1609587011479,0.18043158,29659.0,29657.0,0.04146219]
[1609587011677,0.18043158,29659.0,29657.0,0.04108367]
[1609587012078,0.18043158,29659.0,29658.0,0.00037853]
[1609587012278,0.18043158,29659.0,29657.0,0.0414622]
[1609587012479,0.18043158,29659.0,29658.0,0.00037853]
[1609587012881,0.18043158,29659.0,29657.0,0.0414622]
[1609587013079,0.18043158,29659.0,29658.0,0.00037853]
[1609587013580,0.18043158,29659.0,29657.0,0.04146184]
[1609587013781,0.18043158,29659.0,29658.0,0.00037817]
[1609587014182,0.18043158,29659.0,29657.0,0.04146184]
[1609587014383,0.18043158,29659.0,29658.0,0.00037817]
[1609587014984,0.18043158,29659.0,29657.0,0.04146184]
[1609587015185,0.7067,29658.0,29657.0,0.04108367]
[1609587015684,0.7067,29658.0,29657.0,0.04146184]
[1609587015884,0.7067,29658.0,29657.0,0.04146185]
[1609587016786,0.7067,29658.0,29657.0,0.00037817]
[1609587020094,0.7067,29658.0,29657.0,0.00037819]
[1609587023300,1.7067,29658.0,29656.0,0.01657]
[1609587023501,1.7067,29658.0,29649.0,0.11194]
[1609587023703,1.7067,29658.0,29646.0,5.1445]
[1609587023902,1.0,29657.0,29646.0,5.1445]
[1609587024101,1.0,29656.0,29647.0,0.00037826]
[1609587024303,2.0,29657.0,29647.0,0.00037826]
[1609587024505,2.0,29657.0,29647.0,0.15418826]
[1609587024805,4.1676,29648.0,29647.0,0.15418826]
[1609587025005,4.1676,29648.0,29647.0,0.15381]
[1609587025203,4.1676,29648.0,29647.0,0.15418828]
[1609587025605,4.34803158,29648.0,29647.0,0.15418828]
[1609587027208,0.18043158,29648.0,29647.0,0.15418828]
[1609587028508,3.99223158,29648.0,29647.0,0.15418828]
[1609587028909,3.99223158,29648.0,29645.0,1.99205809]
[1609587029311,0.18043158,29648.0,29646.0,0.00037832]
[1609587029509,0.18043158,29648.0,29646.0,0.11105832]
[1609587029709,0.18043158,29648.0,29646.0,0.11068]
[1609587029912,0.18043158,29648.0,29647.0,0.00037831]
[1609587043827,0.18043158,29648.0,29647.0,5.09277831]
[1609587044026,0.17837985,29648.0,29647.0,5.09277831]
[1609587046230,0.17837985,29648.0,29647.0,0.00037831]
[1609587050138,0.17837985,29648.0,29647.0,0.0414748]
[1609587054645,0.17837985,29648.0,29647.0,0.7801748]
[1609587059949,4.8166,29654.0,29647.0,0.7801748]
[1609587060451,0.18043158,29648.0,29647.0,0.7387]
[1609587060751,0.18043158,29648.0,29647.0,0.78017015]
[1609587064257,0.17838016,29648.0,29647.0,0.78017015]
[1609587065453,0.17838016,29648.0,29647.0,0.78016884]
[1609587066054,0.279,29656.0,29647.0,0.78016884]
[1609587066555,0.279,29656.0,29655.0,0.7352]
[1609587067156,0.279,29656.0,29655.0,0.7355782]
[1609587067757,0.00419054,29663.0,29655.0,0.7355782]
[1609587068157,0.00041088,29662.0,29656.0,0.0003782]
[1609587068557,0.00041088,29662.0,29661.0,4.108]
[1609587068957,0.00419054,29663.0,29661.0,4.10837814]
[1609587069461,0.00419054,29663.0,29662.0,0.00037811]
[1609587069661,0.15357,29666.0,29662.0,0.00037811]
[1609587069861,0.00419912,29670.0,29662.0,0.00037811]
[1609587070667,0.00420185,29671.0,29664.0,0.18043158]
[1609587071063,0.00420185,29671.0,29665.0,0.00037808]
[1609587071763,0.10996,29672.0,29665.0,0.00037808]
[1609587072566,0.18043158,29666.0,29665.0,0.00037808]
[1609587077070,0.18043158,29666.0,29665.0,0.72417808]
[1609587092196,0.17838113,29666.0,29665.0,0.72417808]
[1609587098007,0.17838113,29666.0,29665.0,0.76525182]
[1609587101013,0.17838113,29666.0,29665.0,0.04145182]
[1609587102913,0.17838113,29666.0,29665.0,0.00037808]
[1609587103114,0.17838113,29666.0,29665.0,0.0414531]
[1609587103716,0.17838113,29666.0,29665.0,0.00037808]
[1609587103916,0.17838113,29666.0,29665.0,0.0414535]
[1609587104718,0.17838113,29666.0,29665.0,0.00037808]
[1609587105518,0.17838113,29666.0,29665.0,0.04145354]
[1609587106321,0.17838113,29666.0,29665.0,0.00037808]
[1609587111126,0.17838113,29666.0,29665.0,0.04145497]
[1609587112530,0.17838113,29666.0,29665.0,5.11295497]
[1609587119338,0.17633073,29666.0,29665.0,5.11295497]
[1609587125241,0.17633073,29666.0,29665.0,0.04145497]
[1609587125847,0.17633073,29666.0,29665.0,0.71405497]
[1609587130850,0.17428031,29666.0,29665.0,0.71405497]
[1609587143568,5.2111,29670.0,29665.0,0.71405497]
[1609587143768,0.12446226,29672.0,29665.0,0.04145497]
[1609587143968,0.12446226,29672.0,29668.0,4.4327]
[1609587144370,0.00041074,29671.0,29669.0,0.04145219]
[1609587144970,0.18043158,29670.0,29669.0,0.04145219]
[1609587160995,4.43843158,29670.0,29669.0,0.04145219]
[1609587161196,4.43843158,29670.0,29666.0,5.3653]
[1609587161395,4.43843158,29670.0,29669.0,0.04144969]
[1609587161596,0.18043158,29670.0,29669.0,0.04144969]
[1609587161797,0.18043158,29670.0,29667.0,0.04144969]
[1609587161998,0.18043158,29670.0,29669.0,5.6441]
[1609587162603,0.18043158,29670.0,29669.0,5.6855497]
[1609587165405,0.18043158,29670.0,29669.0,0.0414497]
[1609587165906,0.18043158,29670.0,29667.0,4.4631]
[1609587166206,0.18043158,29670.0,29668.0,0.04144953]
[1609587172616,1.18043158,29670.0,29668.0,0.04144953]
[1609587173016,5.0935,29669.0,29668.0,0.04144953]
[1609587173217,6.0935,29669.0,29668.0,0.04144953]
[1609587173416,6.0935,29669.0,29666.0,0.04145085]
[1609587173617,6.0935,29669.0,29668.0,0.04145074]
[1609587173817,6.0935,29669.0,29667.0,0.04145061]
[1609587174118,6.09391073,29669.0,29668.0,0.0003781]
[1609587174321,6.0935,29669.0,29668.0,0.0003781]
[1609587174623,6.09391073,29669.0,29666.0,0.0414507]
[1609587174920,6.0935,29669.0,29666.0,0.0414507]
[1609587175221,0.18043158,29667.0,29666.0,0.0414507]